fUST/lending_fUST_20240227
["ID","MTS","AMOUNT","RATE_DAILY","PERIOD"]
[315456205,1709045446534,-1009.24,0.00019726,2]
[315456207,1709045446543,-237.52081382,0.00019726,2]
[315456208,1709045446552,-1452.98,0.00019726,2]
[315456209,1709045446562,-500.0,0.00019726,2]
[315456211,1709045446571,-500.0,0.00019726,2]
[315456212,1709045446581,-500.0,0.00019726,2]
[315456214,1709045446590,-543.68572627,0.00019726,2]
[315456216,1709045446599,-153.47204912,0.00019726,2]
[315456218,1709045446608,-500.0,0.00019726,2]
[315456219,1709045446618,-500.0,0.00019726,2]
[315456221,1709045446627,-500.0,0.00019726,2]
[315456223,1709045446636,-503.94738389,0.00019726,2]
[315456225,1709045446645,-500.0,0.00019726,2]
[315456227,1709045446653,-500.0,0.00019726,2]
[315456228,1709045446662,-500.0,0.00019726,2]
[315456230,1709045446671,-500.0,0.00019726,2]
[315456232,1709045446682,-1778.3,0.00019726,2]
[315456234,1709045446691,-2784.6,0.00019726,2]
[315456235,1709045446702,-394.21638932,0.00019726,2]
[315456236,1709045446711,-500.0,0.00019726,2]
[315456237,1709045446721,-500.0,0.00019726,2]
[315456238,1709045446730,-500.0,0.00019726,2]
[315456239,1709045446739,-902.6,0.00019726,2]
[315456240,1709045446748,-568.85457968,0.00019726,2]
[315456241,1709045446757,-500.0,0.00019726,2]
[315456242,1709045446766,-500.0,0.00019726,2]
[315456243,1709045446775,-500.0,0.00019726,2]
[315456244,1709045446786,-500.0,0.00019726,2]
[315456245,1709045446798,-282.98479173,0.00019726,2]
[315456246,1709045446808,-500.0,0.00019726,2]
[315456247,1709045446817,-500.0,0.00019726,2]
[315456248,1709045446827,-500.0,0.00019726,2]
[315456249,1709045446836,-500.0,0.00019726,2]
[315456250,1709045446845,-500.0,0.00019726,2]
[315456251,1709045446854,-500.0,0.00019726,2]
[315456252,1709045446864,-500.0,0.00019726,2]
[315456254,1709045446873,-500.0,0.00019726,2]
[315456256,1709045446882,-500.0,0.00019726,2]
[315456257,1709045446891,-500.0,0.00019726,2]
[315456259,1709045446900,-1631.71,0.00019726,2]
[315456261,1709045446910,-500.0,0.00019726,2]
[315456262,1709045446919,-500.0,0.00019726,2]
[315456264,1709045446928,-500.0,0.00019726,2]
[315456265,1709045446937,-162.83762222,0.00019726,2]
[315456267,1709045446946,-500.0,0.00019726,2]
[315456268,1709045446955,-500.0,0.00019726,2]
[315456270,1709045446965,-500.0,0.00019726,2]
[315456271,1709045446974,-500.0,0.00019726,2]
[315456273,1709045446983,-500.0,0.00019726,2]
[315456275,1709045446993,-1878.03,0.00019726,2]
[315456277,1709045447002,-500.0,0.00019726,2]
[315456279,1709045447012,-500.0,0.00019726,2]
[315456281,1709045447021,-151.584815,0.00019726,2]
[315456283,1709045447030,-500.0,0.00019726,2]
[315456284,1709045447038,-500.0,0.00019726,2]
[315456286,1709045447049,-216.5862094,0.00019726,2]
[315456288,1709045447059,-1753.1,0.00019726,2]
[315456290,1709045447068,-500.0,0.00019726,2]
[315456291,1709045447077,-500.0,0.00019726,2]
[315456293,1709045447087,-500.0,0.00019726,2]
[315456295,1709045447096,-500.0,0.00019726,2]
[315456297,1709045447105,-500.0,0.00019726,2]
[315456298,1709045447114,-382.1661985,0.00019726,2]
[315456300,1709045447123,-500.0,0.00019726,2]
[315456302,1709045447132,-500.0,0.00019726,2]
[315456304,1709045447141,-1720.61,0.00019726,2]
[315456306,1709045447150,-500.0,0.00019726,2]
[315456308,1709045447159,-500.0,0.00019726,2]
[315456309,1709045447168,-1043.57,0.00019726,2]
[315456311,1709045447178,-500.0,0.00019726,2]
[315456313,1709045447187,-500.0,0.00019726,2]
[315456315,1709045447196,-500.0,0.00019726,2]
[315456317,1709045447206,-500.0,0.00019726,2]
[315456319,1709045447215,-500.0,0.00019726,2]
[315456321,1709045447225,-788.37,0.00019726,2]
[315456323,1709045447234,-500.0,0.00019726,2]
[315456325,1709045447243,-1409.020691,0.00019726,2]
[315456327,1709045447252,-500.0,0.00019726,2]
[315456328,1709045447261,-1409.020691,0.00019726,2]
[315456330,1709045447271,-500.0,0.00019726,2]
[315456332,1709045447280,-500.0,0.00019726,2]
[315456334,1709045447289,-500.0,0.00019726,2]
[315456336,1709045447298,-500.0,0.00019726,2]
[315456338,1709045447308,-500.0,0.00019726,2]
[315456340,1709045447318,-500.0,0.00019726,2]
[315456341,1709045447327,-500.0,0.00019726,2]
[315456343,1709045447336,-895.43,0.00019726,2]
[315456345,1709045447345,-4078.81,0.00019726,2]
[315456347,1709045447355,-684.46,0.00019726,2]
[315456349,1709045447364,-932.87,0.00019726,2]
[315456351,1709045447374,-500.0,0.00019726,2]
[315456353,1709045447383,-500.0,0.00019726,2]
[315456355,1709045447392,-1035.01,0.00019726,2]
[315456356,1709045447401,-500.0,0.00019726,2]
[315456358,1709045447411,-500.0,0.00019726,2]
[315456360,1709045447420,-3186.54,0.00019726,2]
[315456362,1709045447429,-500.0,0.00019726,2]
[315456364,1709045447439,-1264.04,0.00019726,2]
[315456366,1709045447448,-500.0,0.00019726,2]
[315456368,1709045447457,-500.0,0.00019726,2]
[315456370,1709045447467,-287.412239,0.00019726,2]
[315456372,1709045447476,-862.76,0.00019726,2]
[315456373,1709045447486,-500.0,0.00019726,2]
[315456375,1709045447496,-2904.34,0.00019726,2]
[315456377,1709045447505,-500.0,0.00019726,2]
[315456379,1709045447515,-287.412239,0.00019726,2]
[315456381,1709045447524,-500.0,0.00019726,2]
[315456383,1709045447533,-2131.1,0.00019726,2]
[315456385,1709045447542,-2118.34,0.00019726,2]
[315456387,1709045447552,-500.0,0.00019726,2]
[315456389,1709045447562,-500.0,0.00019726,2]
[315456390,1709045447571,-500.0,0.00019726,2]
[315456392,1709045447580,-500.0,0.00019726,2]
[315456394,1709045447589,-500.0,0.00019726,2]
[315456396,1709045447598,-500.0,0.00019726,2]
[315456398,1709045447607,-500.0,0.00019726,2]
[315456400,1709045447616,-500.0,0.00019726,2]
[315456402,1709045447625,-776.29,0.00019726,2]
[315456404,1709045447635,-500.0,0.00019726,2]
[315456405,1709045447644,-500.0,0.00019726,2]
[315456407,1709045447654,-500.0,0.00019726,2]
[315456409,1709045447663,-10448.94,0.00019726,2]
[315456411,1709045447672,-2468.02,0.00019726,2]
[315456413,1709045447687,-491.01392198,0.00019726,2]
[315456415,1709045447696,-2093.03,0.00019726,2]
[315456417,1709045447708,-5461.5,0.00019726,2]
[315456419,1709045447718,-500.0,0.00019726,2]
[315456421,1709045447727,-500.0,0.00019726,2]
[315456423,1709045447736,-500.0,0.00019726,2]
[315456424,1709045447744,-739.59,0.00019726,2]
[315456426,1709045447754,-500.0,0.00019726,2]
[315456428,1709045447763,-500.0,0.00019726,2]
[315456430,1709045447773,-500.0,0.00019726,2]
[315456432,1709045447783,-500.0,0.00019726,2]
[315456434,1709045447791,-500.0,0.00019726,2]
[315456436,1709045447801,-500.0,0.00019726,2]
[315456438,1709045447812,-500.0,0.00019726,2]
[315456440,1709045447821,-500.0,0.00019726,2]
[315456442,1709045447830,-22165.06,0.00019726,2]
[315456443,1709045447839,-151.0,0.00019726,2]
[315456445,1709045447848,-597.89,0.00019726,2]
[315456447,1709045447857,-5306.08,0.00019726,2]
[315456449,1709045447866,-500.0,0.00019726,2]
[315456451,1709045447875,-500.0,0.00019726,2]
[315456453,1709045447884,-500.0,0.00019726,2]
[315456455,1709045447893,-500.0,0.00019726,2]
[315456457,1709045447902,-1766.2,0.00019726,2]
[315456459,1709045447911,-500.0,0.00019726,2]
[315456460,1709045447921,-500.0,0.00019726,2]
[315456462,1709045447930,-500.0,0.00019726,2]
[315456464,1709045447939,-1649.49,0.00019726,2]
[315456466,1709045447948,-500.0,0.00019726,2]
[315456468,1709045447957,-7474.39,0.00019726,2]
[315456470,1709045447966,-500.0,0.00019726,2]
[315456472,1709045447975,-576.30378723,0.00019726,2]
[315456474,1709045447984,-500.0,0.00019726,2]
[315456475,1709045447993,-4870.97,0.00019726,2]
[315456485,1709045448070,-219.53147788,0.00019726,2]
[315456487,1709045448088,-667.21,0.00019726,2]
[315456489,1709045448097,-21141.42,0.00019726,2]
[315456490,1709045448105,-500.0,0.00019726,2]
[315456492,1709045448114,-3968.63,0.00019726,2]
[315456494,1709045448123,-3952.29,0.00019726,2]
[315456496,1709045448133,-500.0,0.00019726,2]
[315456498,1709045448142,-234.8836946,0.00019726,2]
[315456500,1709045448151,-153.0,0.00019726,2]
[315456502,1709045448160,-153.0,0.00019726,2]
[315456504,1709045448168,-306.0,0.00019726,2]
[315456505,1709045448176,-500.0,0.00019778,2]
[315456507,1709045448184,-153.0,0.00019836,2]
[315456509,1709045448193,-153.0,0.00019836,2]
[315456511,1709045448201,-153.0,0.00019836,2]
[315456513,1709045448210,-153.0,0.00019836,2]
[315456515,1709045448219,-153.0,0.00019836,2]
[315456516,1709045448228,-153.0,0.00019836,2]
[315456518,1709045448237,-153.0,0.00019836,2]
[315456520,1709045448247,-153.0,0.00019836,2]
[315456522,1709045448256,-153.0,0.00019836,2]
[315456524,1709045448265,-153.0,0.00019836,2]
[315456526,1709045448274,-153.0,0.00019836,2]
[315456528,1709045448283,-500.0,0.00019887,2]
[315456529,1709045448292,-224.54443973,0.00019899,2]
[315456531,1709045448302,-908.93,0.00019909,2]
[315456533,1709045448312,-908.93,0.00019909,2]
[315456535,1709045448321,-908.93,0.00019909,2]
[315456537,1709045448330,-908.93,0.00019909,2]
[315456539,1709045448340,-909.0217214,0.00019909,2]
[315456541,1709045448348,-8231.22000589,0.0001991,2]
[315456543,1709045448358,-153.0,0.00019945,2]
[315456545,1709045448366,-295.2105092,0.00019945,2]
[315456546,1709045448375,-153.0,0.00019945,2]
[315456548,1709045448383,-153.0,0.00019945,2]
[315456550,1709045448393,-155.5496449,0.00019945,2]
[315456552,1709045448402,-153.0,0.00019945,2]
[315456554,1709045448411,-153.0,0.00019945,2]
[315456556,1709045448419,-153.0,0.00019945,2]
[315456558,1709045448429,-153.0,0.00019945,2]
[315456559,1709045448438,-153.0,0.00019945,2]
[315456561,1709045448448,-153.0,0.00019945,2]
[315456563,1709045448457,-153.0,0.00019945,2]
[315456565,1709045448466,-153.0,0.00019945,2]
[315456566,1709045448475,-153.0,0.00019945,2]
[315456568,1709045448485,-153.0,0.00019945,2]
[315456570,1709045448494,-153.0,0.00019945,2]
[315456572,1709045448503,-153.0,0.00019945,2]
[315456574,1709045448512,-153.0,0.00019945,2]
[315456576,1709045448521,-153.0,0.00019945,2]
[315456578,1709045448530,-153.0,0.00019945,2]
[315456580,1709045448539,-153.0,0.00019945,2]
[315456582,1709045448548,-153.0,0.00019945,2]
[315456584,1709045448557,-153.0,0.00019945,2]
[315456586,1709045448567,-153.0,0.00019945,2]
[315456588,1709045448576,-200.6117409,0.00019959,2]
[315456590,1709045448585,-200.6117409,0.00019959,2]
[315456592,1709045448595,-200.6117409,0.00019959,2]
[315456593,1709045448604,-200.6117409,0.00019959,2]
[315456594,1709045448613,-500.0,0.00019996,2]
[315456595,1709045448621,-160.0,0.00019999,2]
[315456596,1709045448631,-500.0,0.0002,2]
[315456597,1709045448640,-153.0,0.0002,2]
[315456598,1709045448650,-500.0,0.0002,2]
[315456599,1709045448659,-687.96,0.0002,2]
[315456600,1709045448677,-1009.24,0.0002,2]
[315456601,1709045448688,-1452.98,0.0002,2]
[315456602,1709045448701,-151.0,0.0002,2]
[315456603,1709045448711,-500.0,0.0002,2]
[315456604,1709045448721,-500.0,0.0002,2]
[315456605,1709045448731,-576.22818176,0.0002,2]
[315456606,1709045448741,-151.67137303,0.0002,2]
[315456607,1709045448751,-500.0,0.0002,2]
[315456608,1709045448760,-317.34565024,0.0002,2]
[315456609,1709045448771,-500.0,0.0002,2]
[315456610,1709045448782,-500.0,0.0002,2]
[315456611,1709045448792,-500.0,0.0002,2]
[315456612,1709045448802,-500.0,0.0002,2]
[315456613,1709045448813,-500.0,0.0002,2]
[315456614,1709045448822,-1778.3,0.0002,2]
[315456616,1709045448832,-2784.6,0.0002,2]
[315456618,1709045448842,-500.0,0.0002,2]
[315456620,1709045448852,-500.0,0.0002,2]
[315456622,1709045448861,-500.0,0.0002,2]
[315456624,1709045448870,-902.6,0.0002,2]
[315456626,1709045448880,-311.25723657,0.0002,2]
[315456628,1709045448890,-151.200963,0.0002,2]
[315456630,1709045448900,-500.0,0.0002,2]
[315456632,1709045448909,-500.0,0.0002,2]
[315456634,1709045448919,-500.0,0.0002,2]
[315456636,1709045448928,-500.0,0.0002,2]
[315456638,1709045448938,-500.0,0.0002,2]
[315456640,1709045448947,-500.0,0.0002,2]
[315456642,1709045448956,-500.0,0.0002,2]
[315456644,1709045448966,-500.0,0.0002,2]
[315456646,1709045448975,-500.0,0.0002,2]
[315456648,1709045448984,-151.97029504,0.0002,2]
[315456650,1709045448993,-283.867504,0.0002,2]
[315456652,1709045449003,-283.867504,0.0002,2]
[315456654,1709045449013,-283.867504,0.0002,2]
[315456656,1709045449022,-283.867504,0.0002,2]
[315456658,1709045449032,-500.0,0.0002,2]
[315456660,1709045449041,-500.0,0.0002,2]
[315456662,1709045449050,-500.0,0.0002,2]
[315456664,1709045449061,-1631.71,0.0002,2]
[315456666,1709045449070,-500.0,0.0002,2]
[315456668,1709045449079,-500.0,0.0002,2]
[315456671,1709045449088,-500.0,0.0002,2]
[315456673,1709045449097,-500.0,0.0002,2]
[315456675,1709045449107,-500.0,0.0002,2]
[315456677,1709045449116,-500.0,0.0002,2]
[315456679,1709045449125,-360.71997877,0.0002,2]
[315456681,1709045449134,-1878.03,0.0002,2]
[315456683,1709045449144,-500.0,0.0002,2]
[315456685,1709045449154,-500.0,0.0002,2]
[315456686,1709045449163,-500.0,0.0002,2]
[315456689,1709045449173,-500.0,0.0002,2]
[315456691,1709045449182,-1753.1,0.0002,2]
[315456693,1709045449192,-500.0,0.0002,2]
[315456695,1709045449201,-500.0,0.0002,2]
[315456696,1709045449210,-500.0,0.0002,2]
[315456699,1709045449219,-500.0,0.0002,2]
[315456701,1709045449228,-500.0,0.0002,2]
[315456703,1709045449238,-500.0,0.0002,2]
[315456705,1709045449247,-218.36768508,0.0002,2]
[315456707,1709045449256,-1720.61,0.0002,2]
[315456709,1709045449266,-500.0,0.0002,2]
[315456711,1709045449275,-500.0,0.0002,2]
[315456713,1709045449284,-854.03983867,0.0002,2]
[315456730,1709045449436,-189.53016133,0.0002,2]
[315456732,1709045449448,-500.0,0.0002,2]
[315456733,1709045449457,-500.0,0.0002,2]
[315456735,1709045449468,-339.91658458,0.0002,2]
[315456737,1709045449478,-500.0,0.0002,2]
[315456740,1709045449488,-500.0,0.0002,2]
[315456742,1709045449498,-788.37,0.0002,2]
[315456743,1709045449507,-500.0,0.0002,2]
[315456746,1709045449516,-49.71280014,0.0002,2]
[315456748,1709045449528,-573.02,0.0002,2]
[315456750,1709045449540,-278.42152,0.0002,2]
[315456770,1709045449725,-507.86637086,0.0002,2]
[315456772,1709045449734,-500.0,0.0002,2]
[315456774,1709045449743,-1409.020691,0.0002,2]
[315456777,1709045449753,-500.0,0.0002,2]
[315456778,1709045449762,-500.0,0.0002,2]
[315456780,1709045449771,-274.86743114,0.0002,2]
[315456783,1709045449783,-225.13256886,0.0002,2]
[315456785,1709045449792,-500.0,0.0002,2]
[315456787,1709045449802,-500.0,0.0002,2]
[315456789,1709045449812,-500.0,0.0002,2]
[315456791,1709045449821,-895.43,0.0002,2]
[315456793,1709045449830,-4078.81,0.0002,2]
[315456795,1709045449839,-684.46,0.0002,2]
[315456797,1709045449852,-932.87,0.0002,2]
[315456799,1709045449861,-500.0,0.0002,2]
[315456801,1709045449871,-509.27132953,0.0002,2]
[315456803,1709045449880,-1035.01,0.0002,2]
[315456805,1709045449889,-500.0,0.0002,2]
[315456807,1709045449899,-500.0,0.0002,2]
[315456809,1709045449908,-55.04234705,0.0002,2]
[315456829,1709045624910,-155.17068776,0.00018897,2]
[315456830,1709045624931,-155.17068776,0.00018897,2]
[315456831,1709045627287,304.28012208,0.00018896,2]
[315456833,1709045648329,7285.7296024,0.00018179,2]
[315456836,1709045881128,2022.65,0.000179,2]
[315456868,1709046632571,-155.19088479,0.00017969,2]
[315456869,1709046632583,-155.19088479,0.0001797,2]
[315456870,1709046632593,-1879.04617708,0.00017978,2]
[315456871,1709046632602,-171.8241042,0.00017979,2]
[315456872,1709046632612,-11.41380249,0.00018179,2]
[315456873,1709046632625,-169.8696557,0.00018179,2]
[315456874,1709046632635,-488.3835416,0.000189,2]
[315456877,1709046632644,-210.07403826,0.00019078,2]
[315456879,1709046632653,-521.44,0.00019168,3]
[315456881,1709046632663,-1818.38745433,0.00019175,4]
[315456882,1709046632674,-24982.17681844,0.00019175,4]
[315456883,1709046632686,-1798.68388206,0.00019175,4]
[315456979,1709046638419,-15748.5658089,0.00019175,4]
[315456980,1709046638431,-9965.31013348,0.00019175,4]
[315456981,1709046638476,-2.98553124,0.00019175,4]
[315457011,1709046641604,-2116.49478037,0.00019175,4]
[315457012,1709046641667,-9638.54327758,0.00019175,4]
[315457054,1709046643557,-2261.63279271,0.00019175,4]
[315457056,1709046643569,-477.93445143,0.00019175,4]
[315457058,1709046643582,-3002.59721293,0.00019175,4]
[315457065,1709046643634,-478.15504077,0.00019175,4]
[315457355,1709046646501,-1548.98232661,0.00019175,4]
[315457357,1709046646513,-11771.70138084,0.00019175,4]
[315457359,1709046646524,-839.34028985,0.00019175,4]
[315457452,1709046727311,-256.63,0.0002,7]
[315457453,1709046736480,-300.0,0.00021,9]
[315457454,1709046736529,-36700.0,0.00022,7]
[315457569,1709047835412,-185.94969807,0.00019056,2]
[315457571,1709047835425,-155.18466976,0.00019057,2]
[315457573,1709047835436,-1879.04617708,0.00019075,2]
[315457575,1709047835447,-355.49898889,0.00019075,2]
[315457577,1709047835457,-125.04888589,0.00019076,2]
[315457730,1709047838841,-44.14017429,0.00019076,2]
[315457732,1709047838851,-311.17505586,0.00019078,2]
[315457734,1709047838861,-12328.1952729,0.00019078,2]
[315457736,1709047838873,-4677.69988086,0.00019078,2]
[315457738,1709047838884,-233460.78885362,0.00019078,2]
[315457741,1709047838894,-4387.93379692,0.00019175,4]
[315457742,1709047838906,-157.69966264,0.00019176,2]
[315457745,1709047838915,-1734.55643171,0.00019176,2]
[315457746,1709047838925,-285.24698906,0.00019177,2]
[315457748,1709047838935,-500.0,0.00019178,2]
[315457751,1709047838945,-500.0,0.00019178,2]
[315457752,1709047838955,-500.0,0.00019178,2]
[315457754,1709047838965,-450.13004601,0.00019178,2]
[315457756,1709047838974,-676.78,0.00019178,2]
[315457758,1709047838984,-500.0,0.00019178,2]
[315457760,1709047838993,-225.81105283,0.00019178,2]
[315457762,1709047839002,-500.0,0.00019178,2]
[315457764,1709047839012,-340.24388928,0.00019178,2]
[315457766,1709047839021,-500.0,0.00019178,2]
[315457768,1709047839031,-500.0,0.00019178,2]
[315457769,1709047839040,-241.83685928,0.00019178,2]
[315457770,1709047839050,-501.23732277,0.00019178,2]
[315457771,1709047839058,-500.0,0.00019178,2]
[315457772,1709047839068,-500.0,0.00019178,2]
[315457773,1709047839077,-500.0,0.00019178,2]
[315457774,1709047839086,-503.86862046,0.00019178,2]
[315457775,1709047839095,-500.0,0.00019178,2]
[315457776,1709047839104,-797.13,0.00019178,2]
[315457777,1709047839113,-298.46954899,0.00019178,2]
[315457778,1709047839122,-502.22643844,0.00019178,2]
[315457779,1709047839132,-775.64,0.00019178,2]
[315457780,1709047839141,-500.0,0.00019178,2]
[315457781,1709047839151,-500.0,0.00019178,2]
[315457782,1709047839163,-500.0,0.00019178,2]
[315457783,1709047839172,-500.0,0.00019178,2]
[315457784,1709047839182,-500.0,0.00019178,2]
[315457785,1709047839192,-501.01435665,0.00019178,2]
[315457786,1709047839201,-500.0,0.00019178,2]
[315457787,1709047839210,-500.0,0.00019178,2]
[315457788,1709047839219,-500.0,0.00019178,2]
[315457789,1709047839229,-500.0,0.00019178,2]
[315457790,1709047839239,-151.0,0.00019178,2]
[315457791,1709047839248,-500.0,0.00019178,2]
[315457792,1709047839257,-500.0,0.00019178,2]
[315457793,1709047839266,-500.0,0.00019178,2]
[315457794,1709047839276,-500.0,0.00019178,2]
[315457795,1709047839285,-220.04820398,0.00019178,2]
[315457796,1709047839293,-500.64514974,0.00019178,2]
[315457797,1709047839306,-750.0,0.00019178,2]
[315457798,1709047839315,-500.0,0.00019178,2]
[315457799,1709047839325,-500.0,0.00019178,2]
[315457800,1709047839335,-500.0,0.00019178,2]
[315457801,1709047839345,-500.0,0.00019178,2]
[315457802,1709047839355,-155.0,0.00019178,2]
[315457803,1709047839364,-495.61212969,0.00019178,2]
[315457804,1709047839373,-500.0,0.00019178,2]
[315457805,1709047839382,-500.0,0.00019178,2]
[315457806,1709047839391,-450.69066606,0.00019178,2]
[315457807,1709047839401,-400.32969916,0.00019178,2]
[315457808,1709047839412,-500.52309887,0.00019178,2]
[315457809,1709047839421,-923.44,0.00019178,2]
[315457810,1709047839430,-1050.91,0.00019178,2]
[315457811,1709047839440,-1529.6,0.00019178,2]
[315457812,1709047839450,-1000.0,0.00019178,2]
[315457813,1709047839459,-500.0,0.00019178,2]
[315457814,1709047839468,-500.0,0.00019178,2]
[315457815,1709047839477,-500.0,0.00019178,2]
[315457816,1709047839486,-204.37139353,0.00019178,2]
[315457817,1709047839495,-341.5224866,0.00019178,2]
[315457818,1709047839504,-500.0,0.00019178,2]
[315457819,1709047839513,-500.0,0.00019178,2]
[315457820,1709047839522,-500.0,0.00019178,2]
[315457821,1709047839531,-241.11026349,0.00019178,2]
[315457822,1709047839540,-500.0,0.00019178,2]
[315457823,1709047839549,-500.0,0.00019178,2]
[315457824,1709047839558,-500.0,0.00019178,2]
[315457825,1709047839567,-500.0,0.00019178,2]
[315457826,1709047839579,-500.0,0.00019178,2]
[315457827,1709047839588,-500.0,0.00019178,2]
[315457828,1709047839598,-500.0,0.00019178,2]
[315457829,1709047839607,-500.0,0.00019178,2]
[315457830,1709047839616,-234.6909189,0.00019178,2]
[315457831,1709047839625,-500.82063476,0.00019178,2]
[315457832,1709047839634,-1000.0,0.00019178,2]
[315457833,1709047839644,-500.0,0.00019178,2]
[315457834,1709047839654,-640.88483016,0.00019178,2]
[315457835,1709047839664,-500.0,0.00019178,2]
[315457836,1709047839673,-500.0,0.00019178,2]
[315457837,1709047839681,-522.5209825,0.00019178,2]
[315457838,1709047839690,-500.0,0.00019178,2]
[315457839,1709047839699,-500.65277545,0.00019178,2]
[315457840,1709047839708,-500.0,0.00019178,2]
[315457841,1709047839717,-500.0,0.00019178,2]
[315457842,1709047839726,-500.0,0.00019178,2]
[315457843,1709047839735,-500.0,0.00019178,2]
[315457844,1709047839745,-500.0,0.00019178,2]
[315457845,1709047839754,-500.0,0.00019178,2]
[315457846,1709047839763,-500.0,0.00019178,2]
[315457847,1709047839772,-500.0,0.00019178,2]
[315457848,1709047839782,-1925.52,0.00019178,2]
[315457849,1709047839791,-500.0,0.00019178,2]
[315457850,1709047839800,-500.0,0.00019178,2]
[315457851,1709047839809,-500.0,0.00019178,2]
[315457852,1709047839820,-500.0,0.00019178,2]
[315457853,1709047839830,-521.78939552,0.00019178,2]
[315457854,1709047839839,-500.0,0.00019178,2]
[315457855,1709047839848,-501.12706915,0.00019178,2]
[315457856,1709047839858,-501.05407253,0.00019178,2]
[315457857,1709047839868,-500.0,0.00019178,2]
[315457858,1709047839877,-500.0,0.00019178,2]
[315457859,1709047839887,-500.0,0.00019178,2]
[315457860,1709047839896,-500.0,0.00019178,2]
[315457861,1709047839907,-500.0,0.00019178,2]
[315457862,1709047839916,-500.0,0.00019178,2]
[315457863,1709047839926,-515.4162061,0.00019178,2]
[315457864,1709047839935,-500.0,0.00019178,2]
[315457865,1709047839944,-1793.5,0.00019178,2]
[315457866,1709047839954,-618.37454632,0.00019178,2]
[315457867,1709047839963,-500.0,0.00019178,2]
[315457868,1709047839972,-500.0,0.00019178,2]
[315457869,1709047839982,-500.0,0.00019178,2]
[315457870,1709047839992,-500.32824519,0.00019178,2]
[315457871,1709047840001,-500.11571016,0.00019178,2]
[315457872,1709047840010,-500.0,0.00019178,2]
[315457873,1709047840019,-508.23691754,0.00019178,2]
[315457874,1709047840028,-500.0,0.00019178,2]
[315457875,1709047840037,-500.0,0.00019178,2]
[315457876,1709047840046,-518.19944993,0.00019178,2]
[315457877,1709047840055,-500.0,0.00019178,2]
[315457878,1709047840064,-500.0,0.00019178,2]
[315457879,1709047840073,-171.73712487,0.00019178,2]
[315457880,1709047840082,-500.0,0.00019178,2]
[315457881,1709047840091,-500.0,0.00019178,2]
[315457882,1709047840101,-500.0,0.00019178,2]
[315457883,1709047840110,-310.0,0.00019178,2]
[315457884,1709047840119,-500.0,0.00019178,2]
[315457885,1709047840128,-500.0,0.00019178,2]
[315457886,1709047840137,-500.0,0.00019178,2]
[315457887,1709047840146,-1056.5,0.00019178,2]
[315457888,1709047840157,-240.1435452,0.00019178,2]
[315457889,1709047840267,-500.0,0.00019178,2]
[315457890,1709047840276,-159.02038948,0.00019178,2]
[315457891,1709047840286,-500.0,0.00019178,2]
[315457892,1709047840295,-500.0,0.00019178,2]
[315457893,1709047840304,-500.0,0.00019178,2]
[315457894,1709047840313,-500.0,0.00019178,2]